Cogmind - Beta 9.1 @@@ ROGUE MODE // 2019.11.02 @ 14:32:43 Player: z2oh Result: Destroyed self via exploding Nuclear Reactor Performance ------------- Evolutions (0) 0 Regions Visited (1) 200 Robots Destroyed (26) 130 Value Destroyed (505) 505 Prototype IDs (2) 40 Alien Tech Used (0) 0 Bonus (0) 0 TOTAL SCORE: 875 Bonus ------- None Cogmind --------- Core Integrity 0/250 Matter 183/300 Energy 104/125 System Corruption 0% Temperature Cool (0) Location -10/Materials Parts ------- Power (1) Light Ion Engine Propulsion (2) Flight Unit Utility (2) Visual Processing Unit Weapon (2) Inventory (4) Assault Rifle Light Assault Rifle Grenade Launcher Peak State ------------ Power Ion Engine Propulsion Wheel Wheel Utility Improved Terrain Scanner Hacking Suite Weapon EM Pulse Gun Small Laser Inventory Heat Sink Small Battery Grenade Launcher [Rating: 10] Favorites ----------- Power Light Ion Engine Engine Light Ion Engine Propulsion Wheel Leg Aluminum Leg Wheel Wheel Hover Unit Hover Unit Flight Unit Flight Unit Utility Improved Terrain Scanner Device Improved Terrain Scanner Storage High-capacity Storage Unit Processor Seismic Analyzer Hackware Hacking Suite Weapon EM Pulse Gun Energy Gun EM Pulse Gun Ballistic Gun Light Assault Rifle Launcher Grenade Launcher Build | -11 -10 ------- Run | Scr Mat Slots Evolved . | . . Power . | . . Propulsion . | . . Utility . | . . Weapon . | . . Parts Attached 44 | 9 35 Power 5 | 1 4 Engine 5 | 1 4 Core . | . . Reactor . | . . Propulsion 19 | 4 15 Treads . | . . Leg 4 | 2 2 Wheel 12 | 2 10 Hover 1 | . 1 Flight 2 | . 2 Utility 7 | 2 5 Device 1 | 1 . Storage 2 | . 2 Processor 3 | 1 2 Hackware 1 | . 1 Protection . | . . Artifact . | . . Weapon 13 | 2 11 Energy Gun 7 | 2 5 Energy Cannon . | . . Ballistic Gun 2 | . 2 Ballistic Cannon . | . . Launcher 4 | . 4 Special Weapon . | . . Impact Weapon . | . . Slashing Weapon . | . . Piercing Weapon . | . . Special Melee Weapon . | . . Unidentified Prototypes . | . . Parts Lost 4 | . 4 Power . | . . Propulsion 1 | . 1 Utility 1 | . 1 Weapon 2 | . 2 Highest Loss Streak 3 | . 3 Average Slot Usage (%) 88 | . 88 Engine 14 | . 14 Wheel 20 | . 20 Flight 4 | . 4 Device 7 | . 7 Processor 12 | . 12 Hackware 3 | . 3 Energy Gun 18 | . 18 Ballistic Gun 4 | . 4 Launcher 1 | . 1 Naked Turns . | . . Heaviest Build 11 | 8 11 Greatest Support 20 | 20 20 Greatest Overweight (x) 2 | 1 2 Average Overweight (x) . | . . Largest Inventory Capacity 12 | 4 12 Average Capacity 4 | 4 4 Most Carried 4 | 4 4 Average Carried 1 | . 2 Final Capacity 4 | 4 4 Final Carried 3 | . 3 Class Distribution -------------------- 58% | Scavenger-Mutant 41% | Mutant Dominant Class ---------------- Scavenger-Mutant | -10/Materials Resources | -11 -10 ----------- Run | Scr Mat Matter Collected 583 | 290 293 Remotely . | . . Salvage Created 741 | 153 588 Parts 58 | 14 44 Haulers Intercepted 1 | . 1 Recyclers Shooed 1 | . 1 Parts Field Recycled . | . . Retrieved Matter . | . . Parts Self-Destructed . | . . Prevented . | . . Kills | -11 -10 ------- Run | Scr Mat Combat Hostiles Destroyed 14 | 1 13 Guns 11 | 1 10 AOE 3 | . 3 Classes Destroyed 9 | 3 6 Worker 2 | 1 1 Builder 1 | . 1 Tunneler 4 | 4 . Hauler 1 | . 1 Recycler 1 | . 1 Operator 2 | . 2 Watcher 1 | . 1 Swarmer 3 | . 3 Grunt 11 | 1 10 Best Kill Streak 7 | 5 7 Combat Bots Only 4 | 1 4 Max Kills in Single Turn 3 | 1 3 Gunslinging . | . . Exploded 3 | . 3 Melee . | . . Uniques/NPCs Destroyed . | . . Combat | -11 -10 -------- Run | Scr Mat Damage Taken 677 | 20 657 Core 272 | 20 252 Absorbed by Shields . | . . Core Remaining (%) 92 | 92 . Volleys Fired 83 | 17 66 Largest 2 | 2 2 Hottest 90 | 90 90 Shots Fired 141 | 34 107 Gun 133 | 34 99 Cannon . | . . Launcher 8 | . 8 Special . | . . Kinetic 17 | . 17 Thermal 56 | 17 39 Explosive 8 | . 8 Electromagnetic 60 | 17 43 Robot Hit Streak 10 | 9 10 Robot Miss Streak 4 | 3 4 Penetration Max . | . . Secondary Targets 1 | . 1 Max Gunslinging Chain 1 | . 1 Shots Hit Robots 76 | 21 55 Core Hits 44 | 7 37 Critical Hits . | . . Critical Kills . | . . Critical Parts Destroyed . | . . Melee Attacks . | . . Impact . | . . Slashing . | . . Piercing . | . . Sneak Attacks . | . . Combat Hostiles . | . . Follow-up Attacks . | . . Damage Inflicted 1194 | 245 949 Guns 844 | 245 599 Cannons . | . . Explosions 350 | . 350 Melee . | . . Ramming . | . . Kinetic 52 | . 52 Thermal 433 | 138 295 Explosive 350 | . 350 Electromagnetic 359 | 107 252 Impact . | . . Slashing . | . . Piercing . | . . Highest Corruption . | . . Average Corruption . | . . Corruption Purged . | . . Overload Shots . | . . Overflow Damage . | . . Projectiles . | . . Explosions . | . . Melee . | . . Knockbacks . | . . Impact . | . . Kinetic . | . . Secondary . | . . Self-Inflicted Damage 117 | . 117 Shots 3 | . 3 Rammed . | . . Targets Rammed . | . . Kicked . | . . Crushed . | . . Highest Temperature 306 | 306 211 Average Temperature 80 | 115 66 Received Heat Transfer 222 | 12 210 Siege Activations . | . . Robots Corrupted . | . . Combat Hostiles . | . . Parts Fried . | . . Impact Corruptions . | . . Robots Melted . | . . Combat Hostiles . | . . Parts Melted 1 | 1 . Heat Transferred 1141 | 407 734 Parts Sabotaged . | . . Parts Stolen . | . . Parts Stripped . | . . Power Chain Reactions . | . . Missiles Intercepted . | . . Alert | -11 -10 ------- Run | Scr Mat Peak Influence 323 | 45 323 Average Influence 108 | 30 151 Maximum Alert Level 1 | . 1 Low Security (%) 73 | . . Level 1 26 | . . Level 2 . | . . Level 3 . | . . Level 4 . | . . Level 5 . | . . High Security . | . . Max Security . | . . Squads Dispatched 4 | . 4 Investigation 2 | . 2 Extermination . | . . Reinforcement 2 | . 2 Assault . | . . Garrison . | . . Intercept . | . . Construction Impeded . | . . Haulers Reinforced . | . . Stealth | -11 -10 --------- Run | Scr Mat Distress Signals . | . . Communications Jammed . | . . Distress Signals . | . . Times Spotted 28 | 1 27 Peak Tracking Total 4 | 1 4 Tactical Retreats 5 | . 5 Traps | -11 -10 ------- Run | Scr Mat Traps Triggered 1 | . 1 Indirectly . | . . Trap Hack Attempts . | . . Triggered . | . . Disarmed . | . . Reprogrammed . | . . Reused . | . . Traps Extracted . | . . Installed . | . . Triggered . | . . Machines | -11 -10 ---------- Run | Scr Mat Machines Disabled 1 | . 1 Max in Single Turn 1 | . 1 Machines Sabotaged . | . . Garrisons Compromised . | . . Overloaded Fab Kills . | . . Fab Network Shutdowns . | . . Hacking | -11 -10 --------- Run | Scr Mat Machines Accessed 6 | . 6 Terminals 3 | . 3 Fabricators . | . . Repair Stations 1 | . 1 Recycling Units 2 | . 2 Scanalyzers . | . . Garrison Access . | . . Total Hacks 36 | . 36 Successful 27 | . 27 Failed 9 | . 9 Catastrophic 1 | . 1 Database Lockouts . | . . Manual 1 | . 1 Terminals 18 | . 18 Fabricators . | . . Repair Stations 4 | . 4 Recycling Units 14 | . 14 Scanalyzers . | . . Garrison Access . | . . Terminal Hacks 9 | . 9 Record 2 | . 2 Prototype ID Bank 1 | . 1 Scanalyzer Index 1 | . 1 Alert Level 3 | . 3 Unreport Threat 1 | . 1 Hauler Manifests 1 | . 1 Fabricator Hacks . | . . Repair Station Hacks 4 | . 4 Scan Component 2 | . 2 Repair 2 | . 2 Recycling Unit Hacks 14 | . 14 Recycle Component 4 | . 4 Process 4 | . 4 Report Inventory 4 | . 4 Retrieve Matter 2 | . 2 Scanalyzer . | . . Garrison Access Hacks . | . . Unauthorized Hacks . | . . Terminals . | . . Fabricators . | . . Repair Stations . | . . Recycling Units . | . . Scanalyzers . | . . Garrison Access . | . . Data Cores Recovered . | . . Used . | . . Hacking Detections 5 | . 5 Full Trace Events 3 | . 3 Feedback Events . | . . Feedback Blocked . | . . Robot Schematics Acquired . | . . Robots Built . | . . Matter . | . . Time . | . . Total Robot Build Rating . | . . Part Schematics Acquired . | . . Parts Built . | . . Matter . | . . Time . | . . Total Part Build Rating . | . . Parts Repaired 2 | . 2 Time 52 | . 52 Parts Recycled 4 | . 4 Recycled Matter 17 | . 17 Retrieved Matter 17 | . 17 Retrieved Components . | . . Parts Scanalyzed . | . . Part Schematics Acquired . | . . Parts Damaged . | . . Bothacking | -11 -10 ------------ Run | Scr Mat Used RIF Installer . | . . Robots Hacked . | . . Non-combat . | . . Combat . | . . Robot Hacks Applied . | . . Relay Couplers Released . | . . Robots Rewired . | . . Allies Hacked . | . . Hacks Repelled . | . . Allies | -11 -10 -------- Run | Scr Mat Total Allies . | . . Largest Group . | . . Highest-Rated Group . | . . Highest-Rated Ally . | . . Total Orders . | . . Ally Attacks . | . . Total Damage . | . . Kills . | . . Allies Corrupted . | . . Allies Melted . | . . Intel | -11 -10 ------- Run | Scr Mat Robot Analysis Total . | . . Derelict Logs Recovered . | . . Drone Launches . | . . Drone Recoveries . | . . Exploration | -11 -10 ------------- Run | Scr Mat Turns Passed 903 | 315 588 Spaces Moved 686 | 150 536 Core 45 | 41 4 Treads . | . . Legs . | . . Wheels 356 | 109 247 Hover . | . . Flight 285 | . 285 Fastest Speed 40 | 50 40 Average Speed 63 | 73 61 Slowest Speed 150 | 100 150 Overloaded Moves . | . . Propulsion Burnouts . | . . Robots Hopped 2 | . 2 Cave-ins Triggered . | . . Exploration Rate (%) 36 | 6 66 Regions Visited 1 Branch Regions . Pre-discovered Areas . | . . Known Exits Taken . | . . Unknown Exits Taken 1 | 1 . Scrap Searched . | . . Spaces Dug . | . . Terrain Destroyed 50 | . 50 Melee . | . . Projectile . | . . AOE 50 | . 50 Actions | -11 -10 --------- Run | Scr Mat Total 1008 | 320 688 Wait 139 | 133 6 Move 681 | 149 532 Hop 2 | . 2 Pick Up 32 | 9 23 Fast Attach 8 | 1 7 Attach 10 | 6 4 Detach 4 | . 4 Swap 26 | 2 24 Drop 23 | 3 20 Fire 83 | 17 66 Melee . | . . Ram . | . . Kick . | . . Crush . | . . Escape Stasis . | . . Rewire . | . . Trap . | . . Miscellaneous . | . . Route ------- -11/Scrapyard -10/Materials (discovered 4 exits: [*Mat x2] / [*Min x2]) History --------- Turn | Location | Event 2 | -11/Scrapyard | Met Revision 17 83 | -11/Scrapyard | Discovered new exit (range 8) 316 | -11/Scrapyard | Entered Materials 317 | -10/Materials | Build established: Mutant 409 | -10/Materials | Discovered new exit (range 12) 548 | -10/Materials | Discovered new exit (range 16) 603 | -10/Materials | Repaired Wheel 629 | -10/Materials | Repaired Wheel 679 | -10/Materials | Build established: Scavenger-Mutant 704 | -10/Materials | Core integrity fell below 50% 741 | -10/Materials | Lost 3 parts (1n1u1w) 796 | -10/Materials | Discovered new exit (range 18) 861 | -10/Materials | Discovered new exit (range 17) 902 | -10/Materials | Core integrity fell below 20% 904 | -10/Materials | Destroyed self via exploding Nuclear Reactor Last Messages --------------- [Achievement: Everything Is Under Control] >>Alert(Purge) Purged threat record, alert level lowered. Acquired Hcp. Storage Unit. The Hcp. Storage Unit has expanded your inventory capacity. Items held in inventory do not count towards total mass and therefore cannot slow you down. Acquired Med. Matter Pod. Dropped Med. Matter Pod. Dropped Lgt. Assault Rifle. Dropped Hcp. Storage Unit. Acquired Lrg. Matter Pod. U-05 Engineer lays Concrete. EXIT=FOUND Dropped Wheel. Acquired Hcp. Matter Pod. Dropped Hcp. Matter Pod. Dropped Lrg. Matter Pod. Nuclear Reactor explodes. [Achievement: First Step to Greatness] Map ----- +----------------------------------------------------+ | ?? ???????????????????????????? | | ? ????T???????????????????????? | | ??? ??????????????????????????? | | ###+## ???????????????????????????????? | | ??????????????????????????????????????? | | ??????????????????????????????????????? | | ??????????????????????????????????????? | | ??????????????????????????????????????? | | ??????????????????????????????????????? | | ??????????????????????????????????????? | | ??????????????????????????????????????? | | ??????????????????????????????????????? | | ??????#######?????????????????????????? | | ??????# [#?????????????????????????? | | ??????# #?????????????????????????? | | ??????# !#?????????????????????????? | | ##????# #?????????????????????????? | | #????# """ #?????????????????????????? | | #????# """ #####################?????? | | ####### """ # """ """ # #?????? | | + """ # """ """ = # #?????? | | ####### """ # """ """ #?????? | | #?????# #* ! #?????? | | #?????# ! # #?????? | | #?????# ##########+## #?????? | | #########+########## @ #?????? | | ! #?????? | | ! < #?????? | | #?????? | | #################### ########?????? | | ???????????????????#######????????????? | | ??????????????????????????????????????? | | ??????????????????????????????????????? | | | | | | | | | | | | | | | | | | | | | | | | | | | | | | | | | | | +----------------------------------------------------+ Best States ------------- Heat Dissipation 25 Energy Generation 10 Energy Capacity 250 Matter Stores 300 Matter Capacity 300 Sight Range 18 Terrain Scan Range 16 Terrain Scan Density 85 Evasion (%) 62 Offensive Hacking 10 Item Schematics ----------------- None Robot Schematics ------------------ None Fabricated ------------ Nothing Alien Tech Used ----------------- None Achievements -------------- Crack Shot Everything Is Under Control First Step to Greatness Loot Pinata One Hack Too Far Part-time Mechanic Shopping List Uninvited Guest Challenges ------------ None Game ------ Seed MissileScatterGenerator Manual? 0 Play Time 00:59:40 Cumulative 1.9 hours Start 2019.11.02 @ 11:22:54 End 2019.11.02 @ 14:32:43 Sessions 2 Manual Loads 0 Difficulty Rogue Special Mode None Game No. 2 Rogue 2 Adventurer 0 Explorer 0 Win Type - Total 0 Types 0/0/0/0/0/0/0 Lore% 0 Gallery% 2 Achievement% 3 Wizard Run 0 Options --------- ASCII 0 Keyboard 0 Movement Mouse Keybinds 0 Fullscreen 0 Font 18/Terminus Map View 76x50 Tactical HUD 0 Map Filters NONE Filters NONE Steam 1 RUN: 2401fc20-25da-428f-a5e9-0ac822eb51d4